bitfinex/quotes_SOLUSD_20250228
["timestamp","ask_amount","ask_price","bid_price","bid_amount"]
[1740703337971,5.23146157,137.55,137.53,0.03]
[1740703341859,23.88121043,137.54,137.53,0.03]
[1740703343276,25.71283304,137.54,137.53,0.03]
[1740703347182,23.88121043,137.54,137.53,0.03]
[1740703347374,3.83162261,137.56,137.53,0.03]
[1740703347375,5.0891,137.55,137.53,0.03]
[1740703347769,18.64964886,137.54,137.53,0.03]
[1740703348187,23.88081043,137.55,137.53,0.03]
[1740703350564,25.71243304,137.55,137.53,0.03]
[1740703350764,25.71243304,137.55,137.49,0.03]
[1740703350765,99.99181043,137.54,137.49,0.03]
[1740703351068,99.99181043,137.53,137.49,0.03]
[1740703352691,18.79181043,137.51,137.49,0.03]
[1740703354490,5.0909,137.5,137.49,0.03]
[1740703362397,23.88271043,137.5,137.49,0.03]
[1740703379219,5.0904,137.52,137.49,0.19837739]
[1740703379399,5.1529,137.53,137.49,0.19837739]
[1740703379715,18.71264886,137.53,137.49,0.19837739]
[1740703379889,23.80244886,137.53,137.49,0.03]
[1740703380097,23.80244886,137.53,137.49,0.19837739]
[1740703380295,23.80244886,137.53,137.49,0.03]
[1740703380496,0.14216157,137.52,137.49,0.03]
[1740703381822,5.23266157,137.52,137.49,0.03]
[1740703382821,18.79181043,137.5,137.49,0.03]
[1740703383313,0.063,137.53,137.49,0.19837739]
[1740703383699,18.85481043,137.53,137.49,7.47147739]
[1740703384316,18.71264886,137.53,137.51,0.16837739]
[1740703384504,18.71264886,137.53,137.5,0.16837739]
[1740703384911,18.71264886,137.53,137.51,0.16837739]
[1740703385417,0.063,137.53,137.51,0.16837739]
[1740703386021,0.063,137.53,137.52,20.0]
[1740703386825,0.063,137.53,137.5,0.16837739]
[1740703388105,0.063,137.53,137.51,0.16837739]
[1740703389700,0.063,137.53,137.49,1.84587739]
[1740703389914,0.063,137.53,137.49,1.6775]
[1740703389915,0.20516157,137.53,137.49,1.6775]
[1740703390123,0.20516157,137.53,137.49,21.6775]
[1740703390321,0.20516157,137.53,137.49,1.6775]
[1740703390526,0.20516157,137.53,137.49,1.84587739]
[1740703392036,0.063,137.53,137.51,0.16837739]
[1740703394809,0.063,137.53,137.5,0.16837739]
[1740703395212,0.20516157,137.53,137.5,20.0]
[1740703395512,0.20516157,137.53,137.49,0.03]
[1740703395710,0.20516157,137.53,137.49,0.19837739]
[1740703395928,0.20516157,137.53,137.49,20.03]
[1740703396238,18.64964886,137.51,137.49,20.03]
[1740703396733,18.64964886,137.51,137.49,20.19837739]
[1740703397032,18.64964886,137.51,137.49,20.03]
[1740703397719,18.64964886,137.51,137.49,20.19837739]
[1740703398121,18.64964886,137.51,137.49,20.03]
[1740703398920,18.64964886,137.51,137.49,20.19837739]
[1740703399813,18.64964886,137.51,137.49,20.03]
[1740703400127,18.64964886,137.51,137.49,20.19837739]
[1740703400331,18.64964886,137.51,137.49,20.03]
[1740703400634,18.64964886,137.51,137.49,20.19837739]
[1740703400836,18.64964886,137.51,137.49,0.19837739]
[1740703401425,18.64964886,137.51,137.49,0.03]
[1740703401734,18.64964886,137.51,137.49,0.19837739]
[1740703401938,18.64964886,137.51,137.49,0.03]
[1740703402237,18.85481043,137.53,137.49,20.19837739]
[1740703402414,18.85481043,137.53,137.49,0.03]
[1740703402415,23.94471043,137.53,137.49,0.03]
[1740703404436,105.14471043,137.53,137.49,0.03]
[1740703404638,0.14216157,137.5,137.49,0.03]
[1740703404842,99.99181043,137.5,137.49,0.03]
[1740703406743,105.08271043,137.5,137.49,0.03]
[1740703425064,99.84964886,137.5,137.49,0.03]
[1740703425554,18.64964886,137.5,137.49,0.03]
[1740703426544,0.063,137.53,137.51,0.16837739]
[1740703428656,0.063,137.53,137.52,0.16837739]
[1740703429545,0.063,137.53,137.51,0.16837739]
[1740703429750,0.063,137.53,137.5,0.16837739]
[1740703430243,0.14216157,137.52,137.49,0.19837739]
[1740703430441,0.14216157,137.52,137.49,0.03]
[1740703430642,18.64964886,137.5,137.49,0.03]
[1740703431837,18.79181043,137.52,137.49,0.03]
[1740703432041,23.88211043,137.52,137.49,0.03]
[1740703435467,105.08211043,137.52,137.49,0.03]
[1740703437474,99.99181043,137.52,137.49,0.03]
[1740703439168,105.08201043,137.52,137.49,0.03]
[1740703442747,99.84964886,137.52,137.49,0.19837739]
[1740703443771,104.93974886,137.52,137.49,0.19837739]
[1740703445770,23.73974886,137.52,137.49,0.19837739]
[1740703446375,23.73974886,137.52,137.49,0.03]
[1740703446572,23.73974886,137.52,137.49,0.19837739]
[1740703446872,18.79181043,137.5,137.49,0.03]
[1740703447671,23.88271043,137.5,137.49,0.03]
[1740703449463,18.64964886,137.48,137.45,0.03]
[1740703449775,23.88411043,137.46,137.45,0.03]
[1740703454880,105.08411043,137.46,137.45,0.03]
[1740703455581,105.08411043,137.46,137.45,0.01]
[1740703462974,105.14711043,137.46,137.45,0.01]
[1740703463675,106.97873304,137.46,137.45,0.01]
[1740703463882,101.82343304,137.45,137.44,0.02]
[1740703464178,0.14216157,137.42,137.41,0.03]
[1740703465493,23.88561043,137.42,137.41,0.03]
[1740703465993,25.71723304,137.42,137.41,0.0001]
[1740703466570,27.71723304,137.42,137.41,0.0001]
[1740703466890,20.62343304,137.41,137.4,0.0001]
[1740703467287,25.71763304,137.41,137.4,0.0001]
[1740703475283,20.62343304,137.4,137.39,0.0001]
[1740703476698,18.79181043,137.4,137.39,0.0001]
[1740703478384,99.99181043,137.4,137.39,0.0001]
[1740703479212,99.84964886,137.4,137.39,0.0001]
[1740703479389,87.74,137.43,137.39,0.16847739]
[1740703479597,87.74,137.43,137.4,0.16837739]
[1740703479797,18.64964886,137.42,137.4,0.16837739]
[1740703480398,18.64964886,137.42,137.41,0.16837739]
[1740703480910,18.79181043,137.44,137.41,0.16837739]
[1740703481102,18.64964886,137.44,137.41,0.16837739]
[1740703481609,18.64964886,137.44,137.43,0.16837739]
[1740703484700,18.64964886,137.44,137.43,7.44477739]
[1740703484906,18.64964886,137.44,137.43,0.16837739]
[1740703485291,81.2,137.45,137.44,0.16837739]
[1740703485491,0.063,137.46,137.44,0.16837739]
[1740703490408,0.063,137.46,137.45,0.16837739]
[1740703492715,0.063,137.46,137.45,7.44367739]
[1740703500025,0.063,137.46,137.45,89.54367739]
[1740703504220,0.063,137.46,137.45,232.64267739]
[1740703505408,0.063,137.46,137.45,226.04367739]
[1740703507119,0.063,137.46,137.45,82.26837739]
[1740703507504,0.063,137.46,137.45,0.16837739]
[1740703507704,0.063,137.46,137.42,0.16837739]
[1740703507918,18.79181043,137.45,137.4,0.19837739]
[1740703508215,99.99181043,137.45,137.41,0.16837739]
[1740703508521,99.99181043,137.45,137.4,0.19837739]
[1740703508899,99.99181043,137.45,137.41,0.16837739]
[1740703509314,5.0931,137.44,137.41,0.16837739]
[1740703509517,5.0931,137.44,137.4,0.19837739]
[1740703509714,18.64964886,137.41,137.4,0.03]
[1740703509924,99.84964886,137.41,137.4,0.03]
[1740703510641,99.99181043,137.41,137.4,0.03]
[1740703512343,99.84964886,137.41,137.4,0.19837739]
[1740703512518,6.54,137.45,137.4,0.19837739]
[1740703512519,89.3278,137.45,137.41,0.16837739]
[1740703512835,18.64964886,137.44,137.42,0.16837739]
[1740703513204,6.54,137.45,137.43,0.16837739]
[1740703513427,6.54,137.45,137.4,0.03]
[1740703513428,0.063,137.46,137.45,0.16837739]
[1740703517926,0.063,137.46,137.45,7.44367739]
[1740703518439,0.063,137.46,137.45,0.16837739]
[1740703518829,0.063,137.46,137.45,7.44367739]
[1740703519413,0.063,137.46,137.45,0.16837739]
[1740703522827,0.063,137.46,137.45,7.44367739]
[1740703523233,0.063,137.46,137.45,0.16837739]
[1740703524212,0.063,137.46,137.45,7.44367739]
[1740703527550,1.7065,137.53,137.52,0.16837739]
[1740703527921,6.7963,137.53,137.5,0.16837739]
[1740703528220,18.64964886,137.52,137.5,0.16837739]
[1740703528732,18.64964886,137.52,137.51,0.16837739]
[1740703528956,0.063,137.53,137.52,0.16837739]
[1740703534444,0.20516157,137.53,137.5,0.16837739]
[1740703534820,0.20516157,137.53,137.51,0.16837739]
[1740703535036,0.20516157,137.53,137.5,0.16837739]
[1740703535946,0.14216157,137.51,137.48,0.16837739]
[1740703536136,25.02804886,137.49,137.47,0.16837739]
[1740703536643,25.02804886,137.49,137.48,0.16837739]
[1740703536942,25.02804886,137.49,137.47,0.16837739]
[1740703537544,25.02804886,137.49,137.46,0.19837739]
[1740703537747,25.02804886,137.49,137.47,0.16837739]
[1740703538042,5.0916,137.48,137.47,0.16837739]
[1740703538540,25.02804886,137.49,137.47,0.16837739]
[1740703538722,25.02804886,137.49,137.48,0.16837739]
[1740703540947,18.64964886,137.49,137.48,0.16837739]
[1740703543451,81.2,137.5,137.49,0.16837739]
[1740703543828,18.79181043,137.52,137.49,0.16837739]
[1740703544031,18.64964886,137.52,137.51,0.16837739]
[1740703544933,0.14216157,137.52,137.5,0.16837739]
[1740703546555,18.71264886,137.53,137.52,0.16837739]
[1740703550471,0.063,137.53,137.52,0.16837739]
[1740703555463,0.14216157,137.52,137.5,0.16837739]
[1740703555857,5.0905,137.51,137.5,0.16837739]
[1740703558180,18.64964886,137.51,137.5,0.16837739]
[1740703559452,23.74014886,137.51,137.5,0.16837739]
[1740703559657,23.74014886,137.51,137.49,0.16837739]
[1740703559858,18.64964886,137.5,137.49,0.16837739]
[1740703560098,18.64964886,137.5,137.48,0.16837739]
[1740703560264,36.46644886,137.51,137.48,0.16837739]
[1740703560590,18.79181043,137.5,137.48,0.16837739]
[1740703560768,18.64964886,137.5,137.49,0.16837739]
[1740703561088,18.79181043,137.5,137.48,0.16837739]
[1740703561672,5.0912,137.49,137.48,0.16837739]
[1740703561877,18.64964886,137.49,137.48,0.16837739]
[1740703562580,86.3532,137.52,137.5,0.16837739]
[1740703563076,18.64964886,137.51,137.5,0.16837739]
[1740703564159,0.063,137.52,137.51,0.16837739]
[1740703564775,0.063,137.58,137.54,20.0]
[1740703565081,0.063,137.58,137.57,20.16837739]
[1740703567880,0.063,137.58,137.57,0.16837739]
[1740703571785,0.063,137.58,137.57,20.16837739]
[1740703574085,0.063,137.58,137.57,0.16837739]
[1740703574880,0.063,137.58,137.56,0.16837739]
[1740703575083,18.79181043,137.56,137.54,0.16837739]
[1740703575669,5.089,137.55,137.54,0.16837739]
[1740703575896,23.73864886,137.55,137.53,0.16837739]
[1740703576091,18.79181043,137.54,137.52,0.16837739]
[1740703577192,5.0897,137.53,137.51,0.16837739]
[1740703577399,18.64964886,137.52,137.51,0.16837739]
[1740703578996,86.2894,137.55,137.54,0.16837739]
[1740703579199,6.52,137.56,137.54,0.16837739]
[1740703579402,86.2883,137.57,137.55,0.16837739]
[1740703579584,86.2883,137.57,137.56,0.16837739]
[1740703579906,104.93794886,137.57,137.56,0.16837739]
[1740703580080,99.84964886,137.57,137.56,0.16837739]
[1740703580694,18.64964886,137.57,137.56,0.16837739]
[1740703581199,0.063,137.58,137.57,0.16837739]
[1740703588188,0.063,137.58,137.57,7.43737739]
[1740703589991,0.063,137.58,137.57,0.16837739]
[1740703590484,0.063,137.58,137.57,7.43737739]
[1740703594213,0.063,137.58,137.57,7.26772706]
[1740703597095,0.063,137.58,137.56,102.1]
[1740703597300,0.063,137.58,137.56,109.3693]
[1740703598618,0.063,137.58,137.56,102.1]
[1740703598791,0.063,137.58,137.56,109.3694]
[1740703599414,0.063,137.58,137.56,102.1]
[1740703601212,0.063,137.58,137.56,109.3693]
[1740703603316,0.063,137.58,137.56,20.0]
[1740703604311,0.063,137.58,137.56,27.2695]
[1740703609325,0.063,137.58,137.56,109.3695]
[1740703614140,0.063,137.58,137.56,89.3695]
[1740703614309,0.063,137.58,137.56,82.1]
[1740703615209,0.063,137.58,137.53,89.4009]
[1740703615703,0.14216157,137.57,137.53,82.13]
[1740703616114,5.23046157,137.57,137.53,0.03]
[1740703617234,0.14216157,137.55,137.53,0.03]
[1740703618331,18.79181043,137.55,137.53,0.03]
[1740703618539,25.03604886,137.54,137.53,0.03]
[1740703620442,18.64964886,137.54,137.53,0.03]
[1740703621728,92.3899,137.57,137.53,0.03]
[1740703621909,0.14216157,137.56,137.53,0.03]
[1740703622110,87.3015,137.57,137.53,0.03]
[1740703622332,18.64964886,137.56,137.53,0.03]
[1740703625029,0.14216157,137.55,137.53,0.03]
[1740703626634,5.23116157,137.55,137.53,0.03]
[1740703627136,18.64964886,137.54,137.53,0.03]
[1740703629637,81.2,137.55,137.53,0.03]
[1740703632646,18.64964886,137.54,137.53,0.03]
[1740703632820,18.79181043,137.54,137.53,0.03]
[1740703633253,23.88121043,137.54,137.53,0.03]
[1740703633942,18.79181043,137.54,137.53,0.03]
[1740703634124,81.2,137.55,137.53,0.03]
[1740703637131,0.063,137.58,137.53,82.13]
[1740703637449,0.063,137.58,137.54,7.2706]
[1740703637832,0.063,137.58,137.54,25.4471]
[1740703638238,0.063,137.58,137.54,7.2706]
[1740703640083,0.063,137.58,137.54,25.4471]
[1740703640232,0.063,137.58,137.54,27.4471]
[1740703641148,0.063,137.58,137.57,20.0]
[1740703642130,0.063,137.58,137.57,27.269]
[1740703645882,0.063,137.58,137.57,109.369]
[1740703646046,0.063,137.62,137.59,2.0]
[1740703646366,0.063,137.62,137.61,20.0]
[1740703648065,0.063,137.62,137.61,27.2669]
[1740703650746,0.063,137.62,137.61,109.3669]
[1740703651465,0.063,137.62,137.58,7.2684]
[1740703652150,0.063,137.62,137.61,20.0]
[1740703653073,0.063,137.62,137.58,7.2684]
[1740703653249,0.063,137.62,137.61,20.0]
[1740703654374,0.063,137.62,137.61,27.2669]
[1740703659165,0.063,137.62,137.61,20.0]
[1740703661275,0.063,137.62,137.59,7.2677]
[1740703661463,0.063,137.62,137.58,89.3683]
[1740703661974,0.063,137.62,137.58,82.1]
[1740703662579,0.063,137.62,137.58,89.3683]
[1740703667384,0.063,137.62,137.58,82.1]
[1740703667982,0.063,137.62,137.56,95.9193]
[1740703668182,0.14216157,137.61,137.56,82.13]
[1740703669294,8.1427,137.6,137.56,0.03]
[1740703669900,0.14216157,137.59,137.56,0.03]
[1740703670131,18.64964886,137.57,137.56,0.03]
[1740703670384,18.79181043,137.57,137.56,0.03]
[1740703671484,23.88011043,137.57,137.56,0.03]
[1740703672789,105.08011043,137.57,137.56,0.03]
[1740703672974,0.14216157,137.54,137.53,0.03]
[1740703673371,105.08121043,137.54,137.53,0.03]
[1740703675299,23.88121043,137.54,137.53,0.03]
[1740703675788,0.14216157,137.52,137.46,0.03]
[1740703675993,0.14216157,137.5,137.46,0.03]
[1740703677394,18.64964886,137.48,137.46,0.03]
[1740703677601,23.74144886,137.48,137.46,0.03]
[1740703677804,0.14216157,137.47,137.46,0.03]
[1740703679898,23.88381043,137.47,137.46,0.03]
[1740703680212,18.64964886,137.47,137.46,0.03]
[1740703680830,18.79181043,137.47,137.46,0.03]
[1740703681016,105.08381043,137.47,137.46,0.03]
[1740703685012,23.88381043,137.47,137.46,0.03]
[1740703688922,18.79181043,137.47,137.46,0.03]
[1740703690226,23.88381043,137.47,137.46,0.03]
[1740703693125,18.79181043,137.47,137.46,0.03]
[1740703693511,23.88381043,137.47,137.46,0.03]
[1740703697110,20.14216157,137.44,137.43,0.03]
[1740703697311,18.79181043,137.44,137.43,0.03]
[1740703698745,23.88491043,137.44,137.43,0.03]
[1740703699345,38.79181043,137.41,137.4,0.03]
[1740703700017,18.79181043,137.4,137.39,0.0001]
[1740703700226,25.31181043,137.4,137.39,0.0001]
[1740703700833,28.61331043,137.39,137.38,0.0001]
[1740703701138,30.61331043,137.39,137.38,0.0001]
[1740703701631,20.79181043,137.38,137.37,1e-08]
[1740703702355,18.79181043,137.38,137.37,1e-08]
[1740703702531,22.79181043,137.38,137.37,1e-08]
[1740703702832,25.88711043,137.38,137.37,1e-08]
[1740703703035,18.79181043,137.38,137.37,1e-08]
[1740703703833,0.14216157,137.38,137.37,1e-08]
[1740703704938,14.3415,137.39,137.37,1e-08]
[1740703705131,0.14216157,137.38,137.37,1e-08]
[1740703705333,18.79181043,137.38,137.37,1e-08]
[1740703707423,18.64964886,137.38,137.37,1e-08]
[1740703707650,1.5286,137.43,137.37,1e-08]
[1740703707942,18.79181043,137.42,137.37,1e-08]
[1740703708743,18.64964886,137.42,137.37,1e-08]
[1740703708928,6.52,137.44,137.37,1e-08]
[1740703709130,18.64964886,137.41,137.37,1e-08]
[1740703710441,0.14216157,137.42,137.37,1e-08]
[1740703710829,0.14216157,137.41,137.37,1e-08]
[1740703711027,0.14216157,137.43,137.37,1e-08]
[1740703712228,18.79181043,137.41,137.37,1e-08]
[1740703712431,18.79181043,137.39,137.37,1e-08]
[1740703712646,99.99181043,137.38,137.37,1e-08]
[1740703718153,105.08711043,137.38,137.37,1e-08]
[1740703720266,23.88711043,137.38,137.37,1e-08]
[1740703720475,25.88711043,137.38,137.37,1e-08]
[1740703721256,0.14216157,137.36,137.34,0.03]
[1740703721435,45.31181043,137.35,137.34,0.03]
[1740703721635,46.82751043,137.35,137.34,0.03]
[1740703722677,51.92391043,137.35,137.34,0.03]
[1740703724861,55.59458254,137.35,137.34,0.03]
[1740703725249,106.43261043,137.34,137.32,0.03]
[1740703725453,110.43261043,137.34,137.26,0.03]
[1740703725660,18.79181043,137.32,137.26,0.03]
[1740703726559,18.79181043,137.3,137.26,0.03]
[1740703726864,0.14216157,137.27,137.26,0.03]
[1740703727644,23.89121043,137.27,137.26,0.03]
[1740703728742,25.89121043,137.27,137.26,0.03]
[1740703729671,27.89121043,137.27,137.26,0.03]
[1740703730043,23.89121043,137.27,137.26,0.03]
[1740703730665,18.79181043,137.27,137.26,0.03]
[1740703731453,23.89121043,137.27,137.26,0.03]
[1740703734972,24.0,137.25,137.24,2.1225197]
[1740703735276,0.14216157,137.22,137.17,1.6662]
[1740703735486,18.79181043,137.2,137.17,1.6662]
[1740703739376,0.14216157,137.17,137.12,0.03]
[1740703739560,0.14216157,137.15,137.12,0.03]
[1740703742368,25.20964886,137.16,137.12,0.03]
[1740703742773,25.20964886,137.16,137.04,6.6084]
[1740703742774,0.14216157,137.13,137.04,6.6084]
[1740703742968,81.34216157,137.13,137.07,2.0]
[1740703743164,0.14216157,137.13,137.08,20.0]
[1740703744568,0.14216157,137.13,137.08,27.2949]
[1740703745154,0.14216157,137.13,137.08,20.0]
[1740703745555,0.14216157,137.13,136.72,431.46650631]
[1740703745556,0.14216157,137.11,137.03,0.03]
[1740703745791,0.14216157,137.09,137.03,0.03]
[1740703745965,18.79181043,137.09,137.03,0.03]
[1740703746701,23.89791043,137.09,137.03,0.03]
[1740703747195,18.79181043,137.09,137.03,0.03]
[1740703747959,23.89801043,137.09,137.03,0.03]
[1740703748683,18.79181043,137.05,137.03,0.03]
[1740703749289,20.79181043,137.04,137.03,0.03]
[1740703749603,22.79181043,137.04,137.03,0.03]
[1740703749792,20.79181043,137.04,137.03,0.03]
[1740703749974,23.89971043,137.04,137.03,0.03]
[1740703750289,25.89971043,137.04,137.03,0.03]
[1740703750455,18.64964886,136.99,136.97,2.1225197]
[1740703750660,0.14216157,136.98,136.97,2.1225197]
[1740703752659,18.64964886,136.99,136.97,2.1225197]
[1740703753272,5.1076,137.05,136.97,2.1225197]
[1740703753476,8.76909022,137.05,136.97,9.4233197]
[1740703753665,18.64964886,137.04,136.97,2.1225197]
[1740703753864,0.14216157,137.03,136.97,9.4231197]
[1740703754067,5.25056157,137.03,136.97,9.4231197]
[1740703754298,18.64964886,137.04,136.97,9.4231197]
[1740703754504,6.68,137.07,136.97,9.4231197]
[1740703754806,0.14216157,137.05,136.97,9.4231197]
[1740703755102,18.79181043,137.06,136.97,9.4231197]
[1740703755399,20.64964886,137.06,136.97,2.1225197]
[1740703755566,18.64964886,137.02,136.97,2.1225197]
[1740703755901,0.14216157,137.01,136.97,9.4231197]
[1740703756412,0.14216157,137.01,136.97,2.1225197]
[1740703756698,0.14216157,137.01,136.97,9.4232197]
[1740703757198,2.0,137.06,136.97,9.4232197]
[1740703757199,0.14216157,137.05,136.97,9.4232197]
[1740703757417,0.14216157,137.05,136.97,91.5232197]
[1740703757696,18.79181043,137.05,136.97,91.5232197]
[1740703758596,23.89961043,137.05,136.97,109.7753197]
[1740703759711,18.79181043,137.05,136.97,109.7753197]
[1740703760509,23.89951043,137.05,136.97,109.7753197]
[1740703760712,18.79181043,137.05,136.97,109.7753197]
[1740703761311,18.79181043,137.05,136.97,113.7753197]
[1740703761481,86.3065,137.08,137.0,1.6464]
[1740703761677,18.64964886,137.07,137.01,7.2987]
[1740703764103,23.75654886,137.07,137.01,7.2987]
[1740703764493,18.64964886,137.07,137.01,7.2987]
[1740703765197,18.64964886,137.07,137.04,20.0]
[1740703765822,18.64964886,137.07,137.02,20.0]
[1740703767228,18.64964886,137.07,137.04,20.0]
[1740703768224,81.2,137.1,137.04,27.2968]
[1740703768791,81.2,137.12,137.04,109.3968]
[1740703769015,0.063,137.07,137.04,134.3196]
[1740703769189,0.063,137.07,137.05,4.0]
[1740703769393,0.063,137.07,137.06,6.3683]
[1740703769821,0.063,137.07,137.04,116.0768]
[1740703770899,0.063,137.07,137.04,96.0768]
[1740703772106,0.063,137.07,137.04,118.3196]
[1740703772716,0.063,137.07,137.04,116.3196]
[1740703772904,0.063,137.07,137.04,96.0768]
[1740703774621,0.063,137.07,137.04,88.78]
[1740703775641,0.063,137.07,137.01,82.1]
[1740703775813,0.063,137.07,137.01,89.3986]
[1740703776825,0.063,137.07,137.02,4.0]
[1740703777222,0.063,137.07,137.03,7.2976]
[1740703778329,0.063,137.07,137.03,9.2976]
[1740703779121,0.063,137.07,137.03,11.2976]
[1740703780534,0.063,137.07,137.03,7.2976]
[1740703780737,0.063,137.07,137.03,9.3276]
[1740703781145,0.063,137.07,137.05,4.0]
[1740703781314,0.063,137.07,137.05,86.1]
[1740703782438,0.063,137.07,137.06,2.0]
[1740703783134,0.063,137.07,137.06,12.9402]
[1740703783433,0.063,137.07,137.06,231.5402]
[1740703783636,7.9817,137.16,137.08,2.0]
[1740703783811,18.71264886,137.15,137.08,84.1]
[1740703785235,18.71264886,137.15,137.09,7.2944]
[1740703787029,0.063,137.15,137.09,109.6305]
[1740703787238,0.063,137.15,137.1,2.0]
[1740703787938,0.063,137.15,137.1,4.0]
[1740703788512,0.063,137.15,137.1,222.6]
[1740703788927,0.063,137.15,137.11,4.0]
[1740703789213,0.063,137.15,137.11,86.1]
[1740703789415,0.063,137.15,137.14,20.0]
[1740703789618,0.063,137.15,137.12,89.3928]
[1740703790841,0.063,137.15,137.1,7.2939]
[1740703791741,18.71264886,137.15,137.1,7.2939]
[1740703791933,18.71264886,137.15,137.09,89.3943]
[1740703793237,18.64964886,137.13,137.09,82.1]
[1740703793617,18.64964886,137.13,137.07,13.9951]
[1740703793825,99.84964886,137.13,137.06,0.03]
[1740703795041,0.14216157,137.12,137.06,0.03]
[1740703795543,18.79181043,137.1,137.06,0.03]
[1740703795742,99.99181043,137.1,137.06,0.03]
[1740703795932,7.8757,137.09,137.06,0.03]
[1740703797333,12.9821,137.09,137.06,0.03]
[1740703797515,18.64964886,137.08,137.06,0.03]
[1740703797719,7.8757,137.09,137.06,0.03]
[1740703797919,82.8638,137.12,137.06,0.03]
[1740703798440,18.64964886,137.11,137.06,0.03]
[1740703799332,82.8638,137.12,137.06,0.03]
[1740703801936,81.263,137.15,137.09,20.0]
[1740703802243,18.64964886,137.14,137.09,20.0]
[1740703802637,0.063,137.15,137.09,102.1]
[1740703803031,0.063,137.15,137.09,114.4083]
[1740703803237,0.063,137.15,137.13,20.0]
[1740703803756,0.063,137.15,137.13,82.1]
[1740703805148,0.063,137.15,137.14,7.2918]
[1740703805726,0.063,137.15,137.14,89.3918]
[1740703805950,0.063,137.21,137.17,20.0]
[1740703806243,0.063,137.21,137.18,20.0]
[1740703807025,0.063,137.21,137.16,82.1]
[1740703809132,18.64964886,137.18,137.13,82.1]
[1740703810344,23.89381043,137.2,137.13,89.3923]
[1740703810654,18.64964886,137.2,137.13,89.3923]
[1740703811749,0.063,137.21,137.16,22.0]
[1740703811951,0.063,137.21,137.17,20.0]
[1740703812135,0.063,137.21,137.17,26.72]
[1740703813731,0.063,137.21,137.18,7.2896]
[1740703816958,0.063,137.21,137.17,6.72]
[1740703817253,0.063,137.21,137.17,96.11]
[1740703817458,0.063,137.21,137.15,7.2912]
[1740703818447,18.64964886,137.2,137.15,7.2912]
[1740703819162,0.063,137.21,137.15,7.26192766]
[1740703819357,0.063,137.21,137.15,89.36192766]
[1740703819666,0.063,137.21,137.15,91.36192766]
[1740703819854,0.063,137.21,137.15,89.36192766]
[1740703825371,0.063,137.21,137.15,107.59012766]
[1740703826668,0.063,137.21,137.15,109.59012766]
[1740703826857,0.063,137.21,137.16,2.0]
[1740703828577,0.063,137.21,137.15,111.59012766]
[1740703828871,0.063,137.21,137.16,2.0]
[1740703829173,0.063,137.21,137.16,84.1]
[1740703829375,0.063,137.21,137.16,82.1]
[1740703831369,0.063,137.21,137.17,7.2902]
[1740703831978,0.063,137.21,137.17,25.5157]
[1740703833175,0.063,137.21,137.17,32.1757]
[1740703833778,0.063,137.21,137.17,34.1757]
[1740703834859,0.063,137.21,137.17,116.2757]
[1740703836177,0.063,137.21,137.2,20.0]
[1740703836366,0.063,137.21,137.2,109.3886]
[1740703844264,0.063,137.21,137.16,7.2907]
[1740703844591,0.063,137.21,137.16,82.1]
[1740703845084,0.063,137.21,137.16,89.3907]
[1740703847199,0.063,137.21,137.17,2.0]
[1740703847795,0.063,137.21,137.17,8.6]
[1740703849285,0.063,137.21,137.17,15.8896]
[1740703850786,0.063,137.21,137.03,47.89551041]
[1740703850787,7.7762,137.13,137.04,2.0]
[1740703850988,2.0,137.1,137.06,0.03]
[1740703851194,20.0,137.05,137.03,11.40791041]
[1740703851373,40.29821043,137.04,137.03,11.40791041]
[1740703851690,18.64964886,137.03,137.01,22.78582082]
[1740703851987,0.14216157,137.02,137.01,1.95980779]